Cogmind - Beta 17 @@@ ROGUE MODE // 2026.07.26 @ 15:52:06 Player: nnnnsk Result: Destroyed by P-80 Master with Gamma Rifle Performance ------------- Evolutions (8) 4000 Regions Visited (23) 4600 Robots Destroyed (213) 1065 Value Destroyed (8120) 8120 Prototype IDs (23) 460 Alien Tech Used (11) 2200 Bonus (3802) 3802 TOTAL SCORE: 24247 Bonus ------- High Alert Combat Kills 882 Follower Combat Kills 20 Entered Garrisons 600 Used RIF Installer 1500 Entered DSFs 500 Met Zhirov 300 Cogmind --------- Core Integrity 0/1450 Matter 13/300 Energy 99/100 System Corruption 15% +Membrane Temperature Cool (0) Movement Core (50) Location -2/Section 7 Parts ------- > --- POWER (2) -------- (None) > --- PROPULSION (6) --- (None) > --- UTILITY (12) ----- (None) > --- WEAPON (3) ------- (None) > --- INVENTORY (5) ---- Medium Matter Pod (0) Linear Accelerator Peak State ------------ > --- POWER ------------ Improved Ion Engine Light Nuclear Core > --- PROPULSION ------- Cooled VTOL Module Advanced Surge Thruster Advanced Surge Thruster Diametric Drive Impulse Thruster Array > --- UTILITY ---------- Power Amplifier Advanced Power Amplifier Advanced Coolant Injector Medium Storage Unit Machine Analyzer Advanced Sensor Array Advanced Signal Interpreter Long-range Terrain Scanner Makeshift Terrain Scan Processor Experimental ECM Suite Advanced Hacking Suite > --- WEAPON ----------- Core Stripper Power Sword > --- INVENTORY -------- Light Quantum Reactor Impulse Thruster Field Propulsion Array Impulse Thruster Array Linear Accelerator Long-range Missile Launcher Advanced Concussive RPG Dirty Datajack [Rating: 146] Favorites ----------- Power Light Nuclear Core Engine Improved Deuterium Engine Power Core Light Nuclear Core Reactor Light Quantum Reactor Propulsion Light Treads Treads Light Treads Leg Aluminum Leg Wheel Wheel Hover Unit Airjet Flight Unit Cooled VTOL Module Utility Improved Heat Sink Device Improved Heat Sink Storage High-capacity Storage Unit Processor Advanced Signal Interpreter Hackware Relay Coupler [Sentry] Protection Medium Reactive Plating Weapon Advanced Beam Rifle Energy Gun Advanced Beam Rifle Energy Cannon Heavy Phase Cannon Ballistic Gun Coil Gun Ballistic Cannon Gauss Cannon Launcher Long-range Missile Launcher Special Weapon Remote Datajack Impact Weapon Power Maul Slashing Weapon Power Sword Piercing Weapon Enhanced Force Lance Special Melee Weapon Improved Datajack Build | -11 -10 -9 -8 -8 -8 -8 -7 -7 -7 -6 -6 -6 -5 -5 -5 -5 -4 -4 -3 -3 -2 -2 -2 ------- Run | Yrd Mat Mat Mat Gar Mat Gar Fac DSF Gar Fac Was Fac Fac Upp Upp Zhi Pro Fac Res Tes Res Qua Sec Slots Evolved 16 | . . 2 2 . . . 2 . . 2 . . 2 . . . . 2 2 . 2 . . Power 1 | . . . . . . . . . . . . . . . . . . . 1 . . . . Propulsion 4 | . . 1 1 . . . 1 . . . . . . . . . . 1 . . . . . Utility 10 | . . 1 1 . . . . . . 2 . . 2 . . . . 1 1 . 2 . . Weapon 1 | . . . . . . . 1 . . . . . . . . . . . . . . . . Parts Attached 234 | 6 6 34 5 14 13 15 1 17 20 9 3 43 2 1 2 2 . 4 3 6 12 7 9 Power 25 | 1 . 3 . 2 1 2 . 3 2 . . 5 . . . . . . . . 2 2 2 Engine 16 | 1 . 1 . 1 1 2 . 3 2 . . 3 . . . . . . . . 2 . . Core 5 | . . 2 . 1 . . . . . . . 2 . . . . . . . . . . . Reactor 4 | . . . . . . . . . . . . . . . . . . . . . . 2 2 Propulsion 78 | 2 . 12 1 5 4 3 . 7 8 5 . 23 . . . . . . . 2 2 2 2 Treads 25 | 2 . 9 1 5 4 . . 1 1 . . 2 . . . . . . . . . . . Leg 21 | . . 3 . . . 3 . 5 7 . . 3 . . . . . . . . . . . Wheel 13 | . . . . . . . . 1 . 5 . 7 . . . . . . . . . . . Hover 3 | . . . . . . . . . . . . 3 . . . . . . . . . . . Flight 16 | . . . . . . . . . . . . 8 . . . . . . . 2 2 2 2 Utility 80 | 1 3 7 3 4 6 7 1 2 4 3 3 10 1 1 . 2 . 4 3 4 6 2 3 Device 32 | . 1 4 . 2 2 3 . 2 2 . . 4 1 . . . . 2 2 2 4 1 . Storage 8 | 1 1 . . 1 . . . . . . . 1 . . . 1 . 1 . . . 1 1 Processor 12 | . . . . . 2 . . . 1 . 1 3 . 1 . . . . . 1 2 . 1 Hackware 11 | . . . . 1 . 1 1 . . 2 2 1 . . . . . 1 1 1 . . . Protection 17 | . 1 3 3 . 2 3 . . 1 1 . 1 . . . 1 . . . . . . 1 Artifact . | . . . . . . . . . . . . . . . . . . . . . . . . Weapon 51 | 2 3 12 1 3 2 3 . 5 6 1 . 5 1 . 2 . . . . . 2 1 2 Energy Gun 15 | 2 1 4 . 2 . . . 4 2 . . . . . . . . . . . . . . Energy Cannon 3 | . . 1 . . . . . . 1 1 . . . . . . . . . . . . . Ballistic Gun 4 | . . 2 . . . . . . 1 . . 1 . . . . . . . . . . . Ballistic Cannon 4 | . . 2 1 . . . . . . . . . . . . . . . . . 1 . . Launcher 8 | . 1 1 . . . 2 . 1 1 . . . 1 . . . . . . . 1 . . Special Weapon 5 | . 1 1 . . . . . . . . . 3 . . . . . . . . . . . Impact Weapon 3 | . . 1 . . 1 . . . . . . . . . . . . . . . . 1 . Slashing Weapon 5 | . . . . 1 1 . . . 1 . . 1 . . . . . . . . . . 1 Piercing Weapon 1 | . . . . . . . . . . . . . . . . . . . . . . . 1 Special Melee Weapon 3 | . . . . . . 1 . . . . . . . . 2 . . . . . . . . Unidentified Prototypes 22 | . . 2 . . . . . . . . . 2 . . . 3 1 . . 3 1 3 7 Parts Lost 90 | . . 14 . 5 . 12 . 9 9 12 . 1 . . . . . 1 . 1 6 3 17 Power 11 | . . 2 . 1 . 2 . 1 . 1 . . . . . . . . . . 1 . 3 Propulsion 37 | . . 4 . 3 . 5 . 4 5 5 . . . . . . . . . 1 2 2 6 Utility 25 | . . 2 . 1 . 3 . 2 1 4 . . . . . . . 1 . . 3 1 7 Weapon 17 | . . 6 . . . 2 . 2 3 2 . 1 . . . . . . . . . . 1 Highest Loss Streak 12 | . . 8 . 3 . 10 . 4 5 12 . 1 . . . . . 1 . 1 4 2 7 To Critical Strikes 1 | . . . . . . . . . 1 . . . . . . . . . . . . . . Average Backups 12 | 2 9 13 13 15 19 16 15 18 17 19 4 6 4 5 5 5 4 8 8 8 7 7 6 Power 1 | . 1 1 1 . . 1 2 2 1 1 . . 1 1 1 1 1 1 . . . 1 . Propulsion 1 | 2 1 1 1 2 1 . . 1 1 1 . 1 1 1 1 1 1 3 4 3 2 1 . Utility 6 | . 4 6 5 8 11 9 9 8 8 11 3 3 1 2 2 1 1 2 1 2 . . . Weapon 3 | . 2 4 6 5 4 4 4 4 4 4 . 1 . 1 1 1 1 1 1 2 2 2 3 Tool/Special . | . . . . . . . . . . . . . . . . . . . . . . . . Unused Backups 55 | . 4 8 2 4 4 . . 1 6 . 3 10 1 . 1 1 . 1 1 3 . 2 3 Power 4 | . . 1 . . . . . . 2 . . 1 . . . . . . . . . . . Propulsion 14 | . 4 3 . . 1 . . . 1 . . . . . . . . 1 1 2 . 1 . Utility 23 | . . 4 1 2 2 . . 1 2 . 2 6 . . 1 1 . . . 1 . . . Weapon 9 | . . . 1 2 1 . . . 1 . . 3 1 . . . . . . . . . . Tool/Special 5 | . . . . . . . . . . . 1 . . . . . . . . . . 1 3 Average Slot Usage (%) 90 | . 97 95 99 99 100 84 78 89 94 86 23 89 88 94 95 99 99 95 92 86 77 81 58 Engine 4 | . 13 2 . 5 6 8 7 6 7 5 1 1 . . . . . . . . 1 3 1 Core 3 | . . 8 9 3 2 . . . . . . 4 5 5 5 5 5 5 9 9 5 3 2 Treads 14 | . 27 26 36 35 36 4 . . 10 . . 1 . . . . . . . . . . . Leg 7 | . . 4 . . . 19 23 28 24 27 . 2 . . . . . . . . . . . Wheel 1 | . . . . . . . . 2 . 3 . 14 . . . . . . . . . . . Flight 4 | . . . . . . . . . . . . 7 29 29 29 29 29 31 28 27 20 17 10 Device 10 | . 1 12 9 13 14 8 7 9 8 5 . 13 13 13 11 10 10 13 13 15 19 22 12 Storage 7 | . 14 11 9 9 9 9 7 7 7 6 . 1 . . . . . 4 4 4 4 7 5 Processor 5 | . . . . . 8 4 . . 5 5 3 11 17 20 23 23 23 21 17 12 12 13 13 Hackware 2 | . . . . . . 1 3 3 . 10 17 10 5 5 5 5 5 6 5 9 7 4 4 Protection 6 | . 11 8 17 13 3 11 10 6 7 5 . . 4 5 5 5 5 1 3 2 1 . 1 Energy Gun 9 | . 22 17 14 13 14 13 6 19 6 . . . . . . . . . . . . . . Ballistic Gun 1 | . . 1 . . . . . . 3 . . 3 . . . . . . . . . . . Launcher 1 | . 3 1 . 2 . . . . 2 . . . . 5 1 . . . . . . . . Slashing Weapon 1 | . . . . 1 . . . . . 4 . 4 3 . 3 5 5 5 4 2 2 4 . Peak Build Rating 146 | 6 8 20 28 32 34 36 38 54 54 39 16 66 64 64 71 77 71 80 90 100 118 146 137 Average Rating 39 | 4 7 15 26 27 32 31 33 44 38 35 15 46 62 63 65 71 70 76 84 88 110 126 96 On Entrance 50 | . 6 8 20 28 32 31 34 30 54 34 22 16 60 64 63 71 72 71 75 88 100 118 119 Avg Prop Armor Cover (%) 7 | . . 8 . . . . . 1 9 . . 10 1 . . . . 2 . . 8 . 12 Naked Turns . | . . . . . . . . . . . . . . . . . . . . . . . . Heaviest Build 87 | 14 31 41 75 75 74 80 87 84 85 66 . 42 23 23 22 16 16 26 32 37 42 50 59 Greatest Support 83 | 40 40 60 80 80 83 83 35 76 76 80 3 42 25 25 25 25 35 42 32 42 46 47 51 Greatest Overweight (x) 25 | . . 10 . 1 . 25 2 2 3 21 . 3 . . . . . . . . 1 1 1 Average Overweight (x) . | . . . . . . 2 1 . . 1 . . . . . . . . . . . . . Largest Inventory Capacity 20 | 8 15 15 15 20 20 20 20 20 20 20 5 15 5 5 5 5 5 10 10 10 10 10 10 Average Capacity 14 | 6 11 15 15 17 20 20 20 20 20 20 5 7 5 5 5 5 5 9 10 10 10 10 8 Most Carried 20 | 6 14 15 15 20 20 20 18 20 20 20 5 15 5 5 5 5 5 10 10 10 10 10 10 Average Carried 13 | 2 9 13 13 16 19 16 15 18 18 19 4 6 4 5 4 4 4 8 9 9 8 9 8 Final Capacity 20 | 8 15 15 15 20 20 20 20 20 20 20 5 5 5 5 5 5 5 10 10 10 10 10 5 Final Carried 20 | 6 14 15 14 18 20 16 16 20 20 18 5 5 5 5 5 5 4 10 10 10 10 10 2 Class Distribution -------------------- 42% | Scavenger-Mutant 22% | Mutant 6% | Scavenger-Gunner 4% | Scavenger-Tank 3% | Scavenger-Assassin 3% | Scout Dominant Class ---------------- Mutant | -10/Materials Scavenger-Mutant | -9/Materials Scavenger-Mutant | -8/Materials Scavenger-Mutant | -8/Garrison Scavenger-Mutant | -8/Materials Scavenger-Mutant | -8/Garrison Scavenger-Mutant | -7/Factory Scavenger-Tank | -7/DSF Scavenger-Gunner | -7/Garrison Scavenger-Mutant | -6/Factory Mutant | -6/Waste Scavenger-Assassin | -6/Factory Scout | -5/Factory Scavenger-Sprinter | -5/Upper Caves Scavenger-Sprinter | -5/Upper Caves Scavenger-Sprinter | -5/Zhirov Scavenger-Sprinter | -4/Proximity Caves Scavenger-Scout | -4/Factory Scavenger-Ninja | -3/Research Hacker-Scout | -3/Testing Hacker-Ninja | -2/Research Scientist-Ninja | -2/Quarantine Mutant | -2/Section 7 Resources | -11 -10 -9 -8 -8 -8 -8 -7 -7 -7 -6 -6 -6 -5 -5 -5 -5 -4 -4 -3 -3 -2 -2 -2 ----------- Run | Yrd Mat Mat Mat Gar Mat Gar Fac DSF Gar Fac Was Fac Fac Upp Upp Zhi Pro Fac Res Tes Res Qua Sec Matter Collected 5113 | 196 279 954 . 386 222 367 . 254 636 231 . 706 31 134 40 . 55 . . 35 542 . 45 Remotely . | . . . . . . . . . . . . . . . . . . . . . . . . Salvage Created 8405 | . 407 1418 23 1136 499 412 . 614 968 750 . 947 31 . 61 283 . . . 161 666 . 29 Parts 460 | . 27 106 1 42 30 17 . 30 47 33 . 51 5 . . 4 . . . 13 50 . 4 Haulers Intercepted 6 | . 1 2 . . 1 . . . . . . 2 . . . . . . . . . . . Recyclers Shooed 7 | . . 2 . . . . . . . 3 . 1 . . . . . . . . 1 . . Parts Field Recycled . | . . . . . . . . . . . . . . . . . . . . . . . . Retrieved Matter . | . . . . . . . . . . . . . . . . . . . . . . . . Parts Self-Destructed 3 | . . . . . . . . . . . . . . . . 3 . . . . . . . Prevented . | . . . . . . . . . . . . . . . . . . . . . . . . Parts Restored . | . . . . . . . . . . . . . . . . . . . . . . . . Kills | -11 -10 -9 -8 -8 -8 -8 -7 -7 -7 -6 -6 -6 -5 -5 -5 -5 -4 -4 -3 -3 -2 -2 -2 ------- Run | Yrd Mat Mat Mat Gar Mat Gar Fac DSF Gar Fac Was Fac Fac Upp Upp Zhi Pro Fac Res Tes Res Qua Sec Combat Hostiles Destroyed 148 | . 9 32 1 22 8 17 . 12 29 3 . 4 . . . . . . . 7 4 . . Melee 5 | . . . . 1 . 1 . . . 1 . 2 . . . . . . . . . . . Guns 76 | . 5 27 . 15 6 6 . 10 5 . . 2 . . . . . . . . . . . Cannons 15 | . . . 1 . 2 3 . . 8 . . . . . . . . . . . 1 . . AOE 47 | . 4 4 . 5 . 7 . 1 14 2 . . . . . . . . . 7 3 . . Classes Destroyed 18 | . 5 5 . 2 1 1 . 2 1 . . . . . . . . . . . 1 . . Worker 14 | . 2 2 . . 1 . . . . 2 . 2 . . . . . . . 1 3 . 1 Builder 10 | . . 3 . . 1 . . . . . . 1 1 . . . . . . . 4 . . Tunneler 10 | . . . . . 2 . . . . . . 5 1 . . . . . . . 2 . . Hauler 6 | . 1 2 . . 1 . . . . . . 2 . . . . . . . . . . . Recycler 11 | . . 3 . . . . . . . 4 . 1 . . . . . . . . 3 . . Operator 2 | . . 2 . . . . . . . . . . . . . . . . . . . . . Watcher 8 | . 3 2 . . 1 . . . . . . 1 . . . . . . . 1 . . . Swarmer 34 | . 3 10 . 6 . 3 . 1 4 . . . . . . . . . . 7 . . . Cutter 2 | . . . . . . . . . . . . . . . . . . . . . 2 . . Grunt 71 | . 6 16 1 10 4 11 . 4 16 . . 3 . . . . . . . . . . . Brawler 2 | . . . . 1 1 . . . . . . . . . . . . . . . . . . Duelist 3 | . . 1 . 1 1 . . . . . . . . . . . . . . . . . . Sentry 16 | . . 5 . 3 2 . . . 3 1 . 2 . . . . . . . . . . . Demolisher 1 | . . . . 1 . . . . . . . . . . . . . . . . . . . Specialist 9 | . . . . . . . . 6 3 . . . . . . . . . . . . . . Hunter 3 | . . . . . . . . . 2 1 . . . . . . . . . . . . . Programmer 10 | . . . . . . 3 . . 1 1 . 3 . . . . . . . . 2 . . Heavy 1 | . . . . . . . . 1 . . . . . . . . . . . . . . . Packrat 1 | . . . . . . . . . . . . . . . 1 . . . . . . . . Best Kill Streak 8 | . 3 5 1 3 7 7 . 3 8 4 . 2 1 . . . . . . 6 5 . 1 Combat Bots Only 8 | . 3 5 1 3 6 7 . 3 8 2 . 2 . . . . . . . 5 2 . . Max Kills in Single Turn 4 | . 2 2 1 2 2 3 . 2 4 3 . 1 1 . 1 . . . . 2 2 . 1 Gunslinging . | . . . . . . . . . . . . . . . . . . . . . . . . Exploded 4 | . 2 2 . 2 . 3 . 1 4 2 . . . . . . . . . 2 1 . . Melee 1 | . . . . 1 . 1 . . . 1 . 1 . . . . . . . . . . . Uniques/NPCs Destroyed . | . . . . . . . . . . . . . . . . . . . . . . . . Combat | -11 -10 -9 -8 -8 -8 -8 -7 -7 -7 -6 -6 -6 -5 -5 -5 -5 -4 -4 -3 -3 -2 -2 -2 -------- Run | Yrd Mat Mat Mat Gar Mat Gar Fac DSF Gar Fac Was Fac Fac Upp Upp Zhi Pro Fac Res Tes Res Qua Sec Hostile Shots Fired 1382 | . 45 213 6 129 32 150 . 119 157 146 . 55 . . . . 12 20 . 21 33 17 227 Missed 464 | . 12 53 2 30 7 40 . 33 46 59 . 20 . . . . 8 12 . 10 13 9 110 Hits 918 | . 33 160 4 99 25 110 . 86 111 87 . 35 . . . . 4 8 . 11 20 8 117 Melee 16 | . . 7 . . . . . . . . . . . . . . . . . . 5 . 4 Projectile 902 | . 33 153 4 99 25 110 . 86 111 87 . 35 . . . . 4 8 . 11 15 8 113 AOE 5 | . . . . 5 . . . . . . . . . . . . . . . . . . . Critical Strikes 24 | . 1 3 . 3 3 3 . 2 2 3 . . . . . . . . . . 3 . 1 Part Disruptions 1 | . . . . . . . . . . . . . . . . . . . . . . . 1 Damage Taken 14905 | . 423 1975 65 1246 421 1811 . 1490 1245 1447 . 443 . . . . 79 110 59 202 715 292 2882 Core 3265 | . 58 326 . 50 83 231 . 278 144 335 . 73 . . . . 44 24 25 39 112 72 1371 Absorbed by Shields 164 | . . . . . . . . . . . . . . . . . . 19 . 46 . 26 73 Redirected to Shielding 51 | . 26 25 . . . . . . . . . . . . . . . . . . . . . Ignored by Resistances 640 | . . . . 137 . . . 286 12 . . . . . . . . . . . . . 205 Regen/Repaired (Parts) 278 | . 139 52 . . 67 . . . . . . . 20 . . . . . . . . . . Core Remaining (%) 66 | 100 76 18 . . . 33 . . 39 . . 52 . . . . 88 97 . 95 . . . Volleys Fired 444 | . 42 114 6 75 31 35 3 33 48 3 . 36 . . . . . . . 4 9 1 4 Largest 3 | . 2 2 1 2 2 2 1 3 3 1 . 1 . . . . . . . 1 1 1 1 Hottest 225 | . 100 150 40 136 136 136 40 225 211 90 . 30 . . . . . . . 43 54 54 54 Shots Fired 742 | . 73 202 6 116 50 51 3 88 93 3 . 39 . . . . . . . 4 9 1 4 Gun 597 | . 63 190 . 101 38 33 . 84 56 . . 32 . . . . . . . . . . . Cannon 63 | . . . 6 . 12 10 3 . 20 2 . . . . . . . . . . 5 1 4 Launcher 68 | . 6 9 . 15 . 8 . 4 17 1 . . . . . . . . . 4 4 . . Special 14 | . 4 3 . . . . . . . . . 7 . . . . . . . . . . . Kinetic 125 | . . 23 6 . 12 10 3 . 29 . . 32 . . . . . . . . 5 1 4 Thermal 495 | . 37 154 . 101 38 33 . 84 47 1 . . . . . . . . . . . . . Explosive 50 | . 6 6 . . . 8 . 4 17 1 . . . . . . . . . 4 4 . . Electromagnetic 65 | . 30 19 . 15 . . . . . 1 . . . . . . . . . . . . . Robot Hit Streak 24 | . 8 13 2 24 16 11 . 18 14 4 . 8 . . . . . . . 7 4 . . Robot Miss Streak 7 | . 3 7 2 5 2 3 3 7 5 . . 3 . . . . . . . . 2 . . Penetration Max . | . . . . . . . . . . . . . . . . . . . . . . . . Secondary Targets 7 | . 1 3 . . . . . 2 1 . . . . . . . . . . . . . . Max Gunslinging Chain 1 | . 1 1 . . . . . 1 1 . . . . . . . . . . . . . . Shots Hit Robots 608 | . 49 133 3 90 39 37 2 59 71 22 . 56 2 . 1 5 . . 2 6 24 . 7 Core Hits 340 | . 22 66 2 41 19 35 . 23 51 12 . 20 2 . . 2 . . 1 17 25 . 2 Critical Kills 3 | . . 1 . . . 1 . . . . . 1 . . . . . . . . . . . Critical Parts Destroyed . | . . . . . . . . . . . . . . . . . . . . . . . . Critical Strikes 34 | . 3 7 1 5 5 1 . 3 5 1 . 1 . . . . . . 1 1 . . . Burn 22 | . 3 6 . 5 3 . . 3 2 . . . . . . . . . . . . . . Destroy 1 | . . . . . . . . . . . . 1 . . . . . . . . . . . Blast 6 | . . . 1 . 2 . . . 3 . . . . . . . . . . . . . . Smash 2 | . . 1 . . . 1 . . . . . . . . . . . . . . . . . Sever 3 | . . . . . . . . . . 1 . . . . . . . . 1 1 . . . Melee Attacks 236 | . . 6 . 19 4 8 2 2 5 29 . 46 6 . 1 5 2 16 9 5 36 11 24 Impact 16 | . . 6 . . 2 8 . . . . . . . . . . . . . . . . . Slashing 173 | . . . . 19 2 . . . . 16 . 42 6 . 1 5 2 16 9 5 28 11 11 Piercing 21 | . . . . . . . . . . . . . . . . . . . . . 8 . 13 Sneak Attacks 61 | . . 1 . . 1 . 2 2 5 12 . 21 2 . 1 . . . . . 13 . 1 Combat Hostiles 1 | . . . . . . . . . . . . . . . . . . . . . 1 . . Follow-up Attacks . | . . . . . . . . . . . . . . . . . . . . . . . . Damage Inflicted 20519 | . 893 2841 80 2549 1037 1709 . 1483 3100 959 . 2296 185 . 84 438 . . 99 906 1485 . 375 Guns 8018 | . 608 2127 . 1483 701 507 . 1194 890 . . 508 . . . . . . . . . . . Cannons 1090 | . . . 80 . 252 222 . . 389 . . . . . . . . . . . 147 . . Explosions 5692 | . 285 572 . 424 . 760 . 289 1821 270 . . . . . . . . . 802 469 . . Melee 5670 | . . 93 . 642 84 220 . . . 689 . 1788 185 . 84 438 . . 99 104 869 . 375 Ramming 1 | . . 1 . . . . . . . . . . . . . . . . . . . . . Kinetic 1882 | . . 198 80 . 252 222 . . 475 . . 508 . . . . . . . . 147 . . Thermal 6900 | . 301 1875 . 1518 701 507 . 1194 804 . . . . . . . . . . . . . . Explosive 5138 | . 258 469 . . . 760 . 289 1821 270 . . . . . . . . . 802 469 . . Electromagnetic 928 | . 334 205 . 389 . . . . . . . . . . . . . . . . . . . Impact 313 | . . 93 . . . 220 . . . . . . . . . . . . . . . . . Slashing 5183 | . . . . 642 84 . . . . 689 . 1788 185 . 84 438 . . 99 104 850 . 220 Piercing 174 | . . . . . . . . . . . . . . . . . . . . . 19 . 155 Highest Corruption 19 | . 2 . . . . 3 . . . 11 17 19 . . . . . . 3 3 8 8 15 Average Corruption 9 | . 2 . . . . 2 . . . 11 15 17 . . . . . . 2 3 6 8 10 Corruption Purged . | . . . . . . . . . . . . . . . . . . . . . . . . Corruption Blocked . | . . . . . . . . . . . . . . . . . . . . . . . . Effects 133 | . 6 . . . . 12 . . . 1 2 60 . . . . . . 2 3 10 10 27 Message Errors 38 | . 1 . . . . 3 . . . . . 20 . . . . . . 1 2 . 1 10 Matter Fused 28 | . 2 . . . . 2 . . . . 2 13 . . . . . . 1 . 3 3 2 Heat Flow Errors 20 | . 1 . . . . 2 . . . . . 7 . . . . . . . 1 2 4 3 Energy Discharges 19 | . . . . . . 3 . . . 1 . 5 . . . . . . . . 4 . 6 Parts Rejected 1 | . 1 . . . . . . . . . . . . . . . . . . . . . . Parts Fused 2 | . . . . . . . . . . . . . . . . . . . . . . 1 1 Data Loss (minor) 9 | . . . . . . 1 . . . . . 5 . . . . . . . . 1 . 2 Data Loss (major) 6 | . . . . . . . . . . . . 4 . . . . . . . . . 1 1 Misfires 5 | . 1 . . . . . . . . . . 4 . . . . . . . . . . . Misdirections 3 | . . . . . . . . . . . . 1 . . . . . . . . . . 2 Weapon Failures 2 | . . . . . . 1 . . . . . 1 . . . . . . . . . . . Overload Shots . | . . . . . . . . . . . . . . . . . . . . . . . . Overflow Damage 990 | . . . . . . 11 . . 86 108 . 271 . . 78 176 . . . 22 218 . 20 Projectiles . | . . . . . . . . . . . . . . . . . . . . . . . . Explosions 119 | . . . . . . 11 . . 86 . . . . . . . . . . 22 . . . Melee 871 | . . . . . . . . . . 108 . 271 . . 78 176 . . . . 218 . 20 Knockbacks 5 | . . . . . . 3 . . 1 . . . . . . . . . . . 1 . . Impact 1 | . . . . . . 1 . . . . . . . . . . . . . . . . . Kinetic 4 | . . . . . . 2 . . 1 . . . . . . . . . . . 1 . . Secondary . | . . . . . . . . . . . . . . . . . . . . . . . . Self-Inflicted Damage 357 | . 52 94 . 15 . 98 . 9 51 . . . . . . . . . . 3 35 . . Shots 16 | . 2 6 . 1 . 2 . 1 2 . . . . . . . . . . 1 1 . . Rammed . | . . . . . . . . . . . . . . . . . . . . . . . . Targets Rammed 1 | . . 1 . . . . . . . . . . . . . . . . . . . . . Kicked 1 | . . 1 . . . . . . . . . . . . . . . . . . . . . Crushed . | . . . . . . . . . . . . . . . . . . . . . . . . Highest Temperature 400 | . 356 400 8 366 206 330 . 303 235 43 . 258 . . . . 278 62 . 366 37 169 139 Average Temperature 97 | . 108 82 4 113 81 124 . 85 84 24 . 103 . . . . 190 30 . 143 25 79 71 Received Heat Transfer 3742 | . 198 780 36 504 270 783 . 207 399 349 . 51 . . . . 12 . . 24 45 6 78 Effects 8 | . 3 3 . 1 . . . 1 . . . . . . . . . . . . . . . Shutdowns 1 | . 1 . . . . . . . . . . . . . . . . . . . . . . Energy Bleed 2 | . . 1 . 1 . . . . . . . . . . . . . . . . . . . Interference 5 | . 2 2 . . . . . 1 . . . . . . . . . . . . . . . Siege Activations . | . . . . . . . . . . . . . . . . . . . . . . . . Martial Activations . | . . . . . . . . . . . . . . . . . . . . . . . . Shielding Activations . | . . . . . . . . . . . . . . . . . . . . . . . . Robots Disrupted . | . . . . . . . . . . . . . . . . . . . . . . . . Combat Hostiles . | . . . . . . . . . . . . . . . . . . . . . . . . Robots Corrupted 1 | . 1 . . . . . . . . . . . . . . . . . . . . . . Combat Hostiles . | . . . . . . . . . . . . . . . . . . . . . . . . Parts Fried 5 | . 2 . . 3 . . . . . . . . . . . . . . . . . . . Impact Corruptions . | . . . . . . . . . . . . . . . . . . . . . . . . Robots Melted 5 | . . 1 . 1 . . . 1 2 . . . . . . . . . . . . . . Combat Hostiles 5 | . . 1 . 1 . . . 1 2 . . . . . . . . . . . . . . Parts Melted 41 | . 3 7 . 5 5 3 . 14 4 . . . . . . . . . . . . . . Heat Transferred 15192 | . 1086 4479 . 3051 1332 888 . 2522 1834 . . . . . . . . . . . . . . Parts Sabotaged . | . . . . . . . . . . . . . . . . . . . . . . . . Parts Stolen . | . . . . . . . . . . . . . . . . . . . . . . . . Parts Stripped . | . . . . . . . . . . . . . . . . . . . . . . . . Power Chain Reactions 4 | . 1 1 . 2 . . . . . . . . . . . . . . . . . . . Alert | -11 -10 -9 -8 -8 -8 -8 -7 -7 -7 -6 -6 -6 -5 -5 -5 -5 -4 -4 -3 -3 -2 -2 -2 ------- Run | Yrd Mat Mat Mat Gar Mat Gar Fac DSF Gar Fac Was Fac Fac Upp Upp Zhi Pro Fac Res Tes Res Qua Sec Maximum Alert Level 4 | . . 2 . 3 2 2 1 2 4 2 . . . . . . . . . 1 2 1 . Low Security (%) 48 | 100 100 70 100 11 . 9 . 38 . . 100 100 100 . . . . 100 100 81 25 . 100 Level 1 19 | . . 19 . 18 81 6 100 59 6 . . . . . . . . . . 18 72 100 . Level 2 20 | . . 10 . 57 17 84 . 2 8 100 . . . . . . . . . . 2 . . Level 3 9 | . . . . 12 . . . . 67 . . . . . . . . . . . . . . Level 4 2 | . . . . . . . . . 17 . . . . . . . . . . . . . . Level 5 . | . . . . . . . . . . . . . . . . . . . . . . . . High Security . | . . . . . . . . . . . . . . . . . . . . . . . . Max Security . | . . . . . . . . . . . . . . . . . . . . . . . . Sterilizations 1 | . . . . . . . . 1 . . . . . . . . . . . . . . . Peak Influence 1237 | . 92 434 172 914 445 586 307 412 1237 648 149 97 40 . . . . 196 113 351 417 335 191 Initial 648 | . . . 172 101 445 129 307 142 309 648 149 90 40 . . . . 6 97 27 191 234 165 Average 303 | . 20 168 150 496 330 484 257 236 848 552 141 24 13 . . . . 134 88 146 261 284 118 Influence Increases 7014 | . 352 1061 54 903 278 577 7 360 1018 216 . 321 31 . . 15 30 278 53 414 492 201 353 Destroy 0b10 Robot/C 3040 | . 180 640 20 440 160 340 . 240 580 120 . 100 . . . . . . . 140 80 . . Destroy 0b10 Robot/NC 330 | . 30 70 . 10 30 . . . . 30 . 60 10 . . 15 . . . 10 60 . 5 Destroy Leader 496 | . 48 148 . 30 54 30 . 40 30 40 . 34 . . . . . . . 22 20 . . Allied During Kill 4 | . . . . 1 . . . . . . . 3 . . . . . . . . . . . Successful Hack 281 | . 15 28 . . 12 . 4 . 21 . . 48 . . . . . 10 26 58 14 45 . Disable Machine 435 | . 15 60 . 15 15 . . 15 15 . . 30 15 . . . . . 15 75 . 75 90 Anti-Garrison Action 500 | . . . . 250 . 50 . . 200 . . . . . . . . . . . . . . Destroy Structure 683 | . 34 25 4 37 7 52 3 35 127 11 . 16 6 . . . . 28 12 94 138 21 33 Partial Spotted 150 | . . . . . . . . . . . . 15 . . . . . 15 . 15 60 30 15 Lose Combat Pursuer 1095 | . 30 90 30 120 . 105 . 30 45 15 . 15 . . . . 30 225 . . 120 30 210 Influence Decreases 6968 | . 352 653 306 145 993 190 389 152 193 1027 297 367 109 5 . 15 20 102 189 123 416 323 602 Entered New Map 2804 | . . . 236 55 469 70 279 62 103 589 277 39 43 3 . . . 4 89 23 150 183 130 Time Decay 3058 | . 352 538 70 . 374 . 110 . . 278 20 327 66 2 . 15 20 88 100 80 206 110 302 Lost Part 866 | . . 115 . 50 . 120 . 90 90 120 . 1 . . . . . 10 . 10 60 30 170 Lost Ally 90 | . . . . 40 . . . . . 40 . . . . . . . . . 10 . . . Purge Threat 150 | . . . . . 150 . . . . . . . . . . . . . . . . . . Squads Dispatched 39 | . 3 4 . . . . 2 3 . 2 . 6 3 . . . . 3 . 1 6 2 4 Investigation 11 | . 1 1 . . . . 1 . . . . 2 2 . . . . 2 . . 1 1 . Extermination 10 | . . . . . . . . . . 1 . 2 1 . . . . 1 . . 2 1 2 Reinforcement 17 | . 2 3 . . . . 1 3 . . . 2 . . . . . . . 1 3 . 2 Assault 1 | . . . . . . . . . . 1 . . . . . . . . . . . . . Garrison . | . . . . . . . . . . . . . . . . . . . . . . . . Intercept . | . . . . . . . . . . . . . . . . . . . . . . . . Searches Triggered . | . . . . . . . . . . . . . . . . . . . . . . . . Construction Impeded 3 | . . 1 . . . . 1 . . . . 1 . . . . . . . . . . . Haulers Reinforced 1 | . . . . . . . . . . . . 1 . . . . . . . . . . . Active Scanning Responses . | . . . . . . . . . . . . . . . . . . . . . . . . Cargo Convoy Interrupts . | . . . . . . . . . . . . . . . . . . . . . . . . Stealth | -11 -10 -9 -8 -8 -8 -8 -7 -7 -7 -6 -6 -6 -5 -5 -5 -5 -4 -4 -3 -3 -2 -2 -2 --------- Run | Yrd Mat Mat Mat Gar Mat Gar Fac DSF Gar Fac Was Fac Fac Upp Upp Zhi Pro Fac Res Tes Res Qua Sec Distress Signals 12 | . 2 3 . . . . . . . 1 . 1 . . . . . . . 1 1 . 3 Communications Jammed . | . . . . . . . . . . . . . . . . . . . . . . . . Distress Signals . | . . . . . . . . . . . . . . . . . . . . . . . . Times Spotted 349 | . 16 49 4 39 12 22 . 16 25 15 5 17 . . . . 6 16 1 17 23 4 62 Peak Tracking Total 22 | . 3 6 4 4 4 18 . 5 5 9 5 4 . . . . 5 8 1 6 8 5 22 Tactical Retreats 42 | . 1 4 1 5 . 4 . 2 1 1 . 1 . . . . 1 4 . 2 4 2 9 ECM-based Alert Blocks 24 | . . . . . . . . . . . . . . . . . . . . 5 . . 19 Traps | -11 -10 -9 -8 -8 -8 -8 -7 -7 -7 -6 -6 -6 -5 -5 -5 -5 -4 -4 -3 -3 -2 -2 -2 ------- Run | Yrd Mat Mat Mat Gar Mat Gar Fac DSF Gar Fac Was Fac Fac Upp Upp Zhi Pro Fac Res Tes Res Qua Sec Traps Triggered 20 | . 2 . . 6 . . . 2 . 1 . 3 1 . . . . 1 2 2 . . . Indirectly 4 | . . . . 4 . . . . . . . . . . . . . . . . . . . Trap Hack Attempts . | . . . . . . . . . . . . . . . . . . . . . . . . Triggered . | . . . . . . . . . . . . . . . . . . . . . . . . Disarmed . | . . . . . . . . . . . . . . . . . . . . . . . . Reprogrammed . | . . . . . . . . . . . . . . . . . . . . . . . . Reused . | . . . . . . . . . . . . . . . . . . . . . . . . Traps Extracted . | . . . . . . . . . . . . . . . . . . . . . . . . Installed . | . . . . . . . . . . . . . . . . . . . . . . . . Triggered . | . . . . . . . . . . . . . . . . . . . . . . . . Machines | -11 -10 -9 -8 -8 -8 -8 -7 -7 -7 -6 -6 -6 -5 -5 -5 -5 -4 -4 -3 -3 -2 -2 -2 ---------- Run | Yrd Mat Mat Mat Gar Mat Gar Fac DSF Gar Fac Was Fac Fac Upp Upp Zhi Pro Fac Res Tes Res Qua Sec Machines Disabled 36 | . 1 4 . 4 1 1 . 1 4 . . 2 1 . . . . . 1 5 . 5 6 Max in Single Turn 2 | . 1 2 . 1 1 1 . 1 1 . . 1 1 . . . . . 1 2 . 1 1 Garrison Access 3 | . . . . . . . . . . 1 . 1 . . . . . 1 . . . . . Garrison Relay 5 | . . . . 3 . 1 . . 1 . . . . . . . . . . . . . . Phase Generator 1 | . . . . . . . . . 1 . . . . . . . . . . . . . . Machines Repaired . | . . . . . . . . . . . . . . . . . . . . . . . . Machines Dismantled . | . . . . . . . . . . . . . . . . . . . . . . . . Machines Sabotaged . | . . . . . . . . . . . . . . . . . . . . . . . . Overloaded Fab Kills . | . . . . . . . . . . . . . . . . . . . . . . . . Hacking | -11 -10 -9 -8 -8 -8 -8 -7 -7 -7 -6 -6 -6 -5 -5 -5 -5 -4 -4 -3 -3 -2 -2 -2 --------- Run | Yrd Mat Mat Mat Gar Mat Gar Fac DSF Gar Fac Was Fac Fac Upp Upp Zhi Pro Fac Res Tes Res Qua Sec Machines Accessed 91 | . 7 11 1 1 3 2 4 . 2 3 . 11 4 . 1 5 1 8 4 5 2 6 10 Terminals 65 | . 6 9 . 1 1 2 3 . 2 1 . 6 2 . . . 1 7 3 4 2 6 9 Fabricators 2 | . . . . . . . . . . . . 1 1 . . . . . . . . . . Repair Stations 4 | . 1 1 . . 1 . . . . . . . 1 . . . . . . . . . . Recycling Units 1 | . . . . . . . 1 . . . . . . . . . . . . . . . . Scanalyzers 8 | . . 1 . . . . . . . 1 . 3 . . . . . . 1 1 . . 1 Garrison Access 5 | . . . 1 . 1 . . . . 1 . 1 . . . . . 1 . . . . . Total Hacks 235 | . 30 29 1 3 10 3 10 . 3 6 . 23 9 . 1 18 1 21 11 20 5 12 19 Successful 121 | . 14 15 1 1 9 1 4 . 2 2 . 9 4 . 1 18 1 5 3 13 2 6 10 Failed 112 | . 16 13 . 2 1 2 6 . 1 4 . 14 5 . . . . 16 8 7 3 6 8 Catastrophic 20 | . . . . . . . . . . . . 5 2 . . . . 5 2 1 . 3 2 Database Lockouts 2 | . . 1 . . . . . . . . . . . . . . . . . . . . 1 Manual 108 | . 22 22 . . 3 . 4 . . 2 . 6 3 . . . . 19 6 8 2 4 7 Terminals 169 | . 24 24 . 3 5 3 9 . 3 3 . 12 5 . . . 1 20 6 17 5 12 17 Fabricators 4 | . . . . . . . . . . . . 2 2 . . . . . . . . . . Repair Stations 15 | . 6 3 . . 4 . . . . . . . 2 . . . . . . . . . . Recycling Units 1 | . . . . . . . 1 . . . . . . . . . . . . . . . . Scanalyzers 20 | . . 2 . . . . . . . 1 . 7 . . . . . . 5 3 . . 2 Garrison Access 7 | . . . 1 . 1 . . . . 2 . 2 . . . . . 1 . . . . . Terminal Hacks 57 | . 3 4 . 1 3 1 1 . 2 . . 1 . . 1 18 1 1 . 6 2 5 7 Record 10 | . . . . . . . . . . . . . . . . 6 1 . . . . 3 . Part Schematic 4 | . . . . . . . . . . . . . . . . 4 . . . . . . . Robot Analysis 6 | . 1 1 . . . . . . . . . . . . . 4 . . . . . . . Prototype ID Bank 5 | . . . . . 1 . . . . . . . . . . 4 . . . . . . . Open Door 8 | . . . . 1 . . . . 1 . . . . . 1 . . . . . . . 5 Open DSF 1 | . . . . . . . 1 . . . . . . . . . . . . . . . . Level Access Points 1 | . . . . . . . . . . . . . . . . . . . . 1 . . . Branch Access Points 2 | . . 1 . . . . . . . . . . . . . . . . . . 1 . . Emergency Access Points 3 | . . . . . . . . . 1 . . . . . . . . 1 . 1 . . . Terminal Index 3 | . 1 1 . . . . . . . . . . . . . . . . . 1 . . . Unreport Threat 1 | . . . . . 1 . . . . . . . . . . . . . . . . . . Locate Traps 3 | . 1 . . . 1 . . . . . . . . . . . . . . 1 . . . Recall Investigation 1 | . . 1 . . . . . . . . . . . . . . . . . . . . . Recall Reinforcements 1 | . . . . . . . . . . . . . . . . . . . . . . . 1 Zone Layout 7 | . . . . . . . . . . . . 1 . . . . . . . 2 1 2 1 Garrison Registry 1 | . . . . . . 1 . . . . . . . . . . . . . . . . . Fabricator Hacks 2 | . . . . . . . . . . . . 1 1 . . . . . . . . . . Network Status 2 | . . . . . . . . . . . . 1 1 . . . . . . . . . . Repair Station Hacks 11 | . 4 2 . . 3 . . . . . . . 2 . . . . . . . . . . Scan Component 6 | . 2 1 . . 2 . . . . . . . 1 . . . . . . . . . . Repair 5 | . 2 1 . . 1 . . . . . . . 1 . . . . . . . . . . Recycling Unit Hacks 1 | . . . . . . . 1 . . . . . . . . . . . . . . . . Report Inventory 1 | . . . . . . . 1 . . . . . . . . . . . . . . . . Scanalyzer 10 | . . 1 . . . . . . . . . 5 . . . . . . 2 1 . . 1 Retrieve Study 10 | . . 1 . . . . . . . . . 5 . . . . . . 2 1 . . 1 Garrison Access Hacks 7 | . . . 1 . 1 . . . . 2 . 2 . . . . . 1 . . . . . Unlock Access 2 | . . . 1 . 1 . . . . . . . . . . . . . . . . . . Seal Access 3 | . . . . . . . . . . 1 . 1 . . . . . 1 . . . . . Coupler Status 2 | . . . . . . . . . . 1 . 1 . . . . . . . . . . . Unauthorized Hacks 33 | . 7 8 . . 2 . 2 . . . . . 1 . . . . 3 1 6 . 1 2 Terminals 32 | . 7 8 . . 2 . 2 . . . . . . . . . . 3 1 6 . 1 2 Assimilate 1 | . . . . . . . . . . . . . . . . . . . . 1 . . . Botnet 17 | . 2 3 . . 1 . 2 . . . . . . . . . . 3 1 2 . 1 2 Skim 14 | . 5 5 . . 1 . . . . . . . . . . . . . . 3 . . . Fabricators 1 | . . . . . . . . . . . . . 1 . . . . . . . . . . Recompile 1 | . . . . . . . . . . . . . 1 . . . . . . . . . . Repair Stations . | . . . . . . . . . . . . . . . . . . . . . . . . Recycling Units . | . . . . . . . . . . . . . . . . . . . . . . . . Scanalyzers . | . . . . . . . . . . . . . . . . . . . . . . . . Garrison Access . | . . . . . . . . . . . . . . . . . . . . . . . . Data Cores Recovered 1 | . . 1 . . . . . . . . . . . . . . . . . . . . . Used . | . . . . . . . . . . . . . . . . . . . . . . . . Hacking Detections 66 | . 7 11 . 1 2 2 3 . 2 2 . 7 3 . . . . 7 3 5 2 5 4 Full Trace Events 9 | . . 1 . . . . 1 . . . . 2 1 . . . . 2 . . 1 1 . Feedback Events . | . . . . . . . . . . . . . . . . . . . . . . . . Feedback Blocked . | . . . . . . . . . . . . . . . . . . . . . . . . Robot Schematics Acquired . | . . . . . . . . . . . . . . . . . . . . . . . . Robots Built . | . . . . . . . . . . . . . . . . . . . . . . . . Authchips . | . . . . . . . . . . . . . . . . . . . . . . . . Time . | . . . . . . . . . . . . . . . . . . . . . . . . Total Robot Build Rating . | . . . . . . . . . . . . . . . . . . . . . . . . Part Schematics Acquired 4 | . . . . . . . . . . . . . . . . 4 . . . . . . . Parts Built . | . . . . . . . . . . . . . . . . . . . . . . . . Authchips . | . . . . . . . . . . . . . . . . . . . . . . . . Time . | . . . . . . . . . . . . . . . . . . . . . . . . Total Part Build Rating . | . . . . . . . . . . . . . . . . . . . . . . . . Part Studies Acquired 10 | . . 1 . . . . . . . . . 5 . . . . . . 2 1 . . 1 Parts Repaired 5 | . 2 1 . . 1 . . . . . . . 1 . . . . . . . . . . Time 160 | . 52 26 . . 32 . . . . . . . 50 . . . . . . . . . . Parts Recycled . | . . . . . . . . . . . . . . . . . . . . . . . . Recycled Matter . | . . . . . . . . . . . . . . . . . . . . . . . . Retrieved Matter . | . . . . . . . . . . . . . . . . . . . . . . . . Retrieved Components . | . . . . . . . . . . . . . . . . . . . . . . . . Parts Scanalyzed . | . . . . . . . . . . . . . . . . . . . . . . . . Part Schematics Acquired . | . . . . . . . . . . . . . . . . . . . . . . . . Parts Damaged . | . . . . . . . . . . . . . . . . . . . . . . . . Bothacking | -11 -10 -9 -8 -8 -8 -8 -7 -7 -7 -6 -6 -6 -5 -5 -5 -5 -4 -4 -3 -3 -2 -2 -2 ------------ Run | Yrd Mat Mat Mat Gar Mat Gar Fac DSF Gar Fac Was Fac Fac Upp Upp Zhi Pro Fac Res Tes Res Qua Sec Used RIF Installer 3 | . . . . 1 . 1 . . 1 . . . . . . . . . . . . . . Coupler Efficiency 1 | . . . . . . 1 . . . . . . . . . . . . . . . . . Autooverride 1 | . . . . . . . . . 1 . . . . . . . . . . . . . . Robots Hacked 13 | . . . . . . . 2 . . 5 . 6 . . . . . . . . . . . Non-combat 7 | . . . . . . . 2 . . 4 . 1 . . . . . . . . . . . Combat 6 | . . . . . . . . . . 1 . 5 . . . . . . . . . . . Autooverrided 1 | . . . . . . . . . . . . 1 . . . . . . . . . . . Robot Hacks Applied 17 | . . . . . . . 2 . . 7 . 8 . . . . . . . . . . . parse_system 1 | . . . . . . . . . . . . 1 . . . . . . . . . . . no_distress 1 | . . . . . . . . . . . . 1 . . . . . . . . . . . start_evac 1 | . . . . . . . . . . 1 . . . . . . . . . . . . . find_chute 2 | . . . . . . . . . . 2 . . . . . . . . . . . . . map_walls 1 | . . . . . . . 1 . . . . . . . . . . . . . . . . find_recycling 1 | . . . . . . . 1 . . . . . . . . . . . . . . . . mark_security 1 | . . . . . . . . . . 1 . . . . . . . . . . . . . find_shortcuts 1 | . . . . . . . . . . 1 . . . . . . . . . . . . . find_garrison 2 | . . . . . . . . . . 1 . 1 . . . . . . . . . . . reboot_system 1 | . . . . . . . . . . 1 . . . . . . . . . . . . . overwrite_iff 2 | . . . . . . . . . . . . 2 . . . . . . . . . . . streamctrl_high 2 | . . . . . . . . . . . . 2 . . . . . . . . . . . formatsys_high 1 | . . . . . . . . . . . . 1 . . . . . . . . . . . Relay Couplers Released 21 | . . . . 14 . 4 . . 3 . . . . . . . . . . . . . . Machine Destruction 21 | . . . . 14 . 4 . . 3 . . . . . . . . . . . . . . Attached 6 | . . . . . . 1 1 . . 2 2 . . . . . . . . . . . . Fabnet Peak Effective % . | . . . . . . . . . . . . . . . . . . . . . . . . Robots Rewired 2 | . . . . . . . . . 2 . . . . . . . . . . . . . . Allies Hacked . | . . . . . . . . . . . . . . . . . . . . . . . . Hacks Repelled . | . . . . . . . . . . . . . . . . . . . . . . . . Allies | -11 -10 -9 -8 -8 -8 -8 -7 -7 -7 -6 -6 -6 -5 -5 -5 -5 -4 -4 -3 -3 -2 -2 -2 -------- Run | Yrd Mat Mat Mat Gar Mat Gar Fac DSF Gar Fac Was Fac Fac Upp Upp Zhi Pro Fac Res Tes Res Qua Sec Total Allies 10 | . . . . 2 . . . . 2 . . 5 . . . . . . . 1 . . . Largest Group 2 | . . . . 2 . . . . 2 2 . 2 . . . . . . . 1 . . . Highest-Rated Group 62 | . . . . 62 . . . . 51 51 . 58 . . . . . . . 26 . . . Highest-Rated Ally 32 | . . . . 31 . . . . 31 31 . 32 . . . . . . . 26 . . . Total Orders 1 | . . . . . . . . . . 1 . . . . . . . . . . . . . STAY 1 | . . . . . . . . . . 1 . . . . . . . . . . . . . Ally Attacks 23 | . . . . 11 . . . . . 10 . 2 . . . . . . . . . . . Total Damage 289 | . . . . 125 . . . . . 145 . 19 . . . . . . . . . . . Kills 4 | . . . . . . . . . . 3 . 1 . . . . . . . . . . . Allies Corrupted . | . . . . . . . . . . . . . . . . . . . . . . . . Allies Melted . | . . . . . . . . . . . . . . . . . . . . . . . . Intel | -11 -10 -9 -8 -8 -8 -8 -7 -7 -7 -6 -6 -6 -5 -5 -5 -5 -4 -4 -3 -3 -2 -2 -2 ------- Run | Yrd Mat Mat Mat Gar Mat Gar Fac DSF Gar Fac Was Fac Fac Upp Upp Zhi Pro Fac Res Tes Res Qua Sec Active Infowar (turns) 4083 | . 85 169 . . 138 10 . . . . . 1293 191 76 68 63 105 186 200 172 435 221 671 Optics 1009 | . . . . . . . . . . . . 180 191 76 68 63 105 186 140 . . . . Sensors 2562 | . . . . . . . . . . . . 1118 191 29 . . . . 74 162 435 221 332 Terrain 2024 | . 85 169 . . 138 10 . . . . . 457 . . . . . 158 200 172 435 200 . Structural 1848 | . . . . . . . . . . . . 1208 191 76 68 63 105 137 . . . . . Seismic 710 | . . . . . . . . . . . . . 93 76 68 58 103 186 126 . . . . Machine Analysis 3241 | . . . . . . . . . . . . 853 191 76 68 63 105 186 200 172 435 221 671 ECM 291 | . . . . . . . . . . . . . . . . . . 9 120 79 6 6 71 Robot Analysis Total 6 | . 1 1 . . . . . . . . . . . . . 4 . . . . . . . Derelict Logs Recovered 3 | . . . . . . . . . . . . . . 1 1 . 1 . . . . . . Drone Launches . | . . . . . . . . . . . . . . . . . . . . . . . . Drone Recoveries . | . . . . . . . . . . . . . . . . . . . . . . . . Exploration | -11 -10 -9 -8 -8 -8 -8 -7 -7 -7 -6 -6 -6 -5 -5 -5 -5 -4 -4 -3 -3 -2 -2 -2 ------------- Run | Yrd Mat Mat Mat Gar Mat Gar Fac DSF Gar Fac Was Fac Fac Upp Upp Zhi Pro Fac Res Tes Res Qua Sec Turns Passed 13140 | 96 1252 2124 149 1265 866 957 222 351 1484 617 45 1324 191 76 68 63 105 186 200 172 435 221 671 Spaces Moved 10833 | 53 548 818 76 560 429 308 95 117 562 277 69 1578 428 319 229 169 383 434 472 462 690 504 1253 Core 239 | 2 . 1 . . . 4 . . . 1 69 24 . . . . . . . . . . 138 Treads 2811 | 51 548 705 76 560 429 55 . . 385 . . 2 . . . . . . . . . . . Legs 970 | . . 112 . . . 249 95 117 177 218 . 2 . . . . . . . . . . . Wheels 940 | . . . . . . . . . . 58 . 882 . . . . . . . . . . . Hover 1 | . . . . . . . . . . . . 1 . . . . . . . . . . . Flight 5872 | . . . . . . . . . . . . 667 428 319 229 169 383 434 472 462 690 504 1115 Fastest Speed 5 | 50 160 160 160 160 160 160 190 120 120 100 50 5 23 23 23 23 5 5 20 5 7 20 29 Average Speed 87 | 155 160 166 160 161 160 262 218 173 220 176 50 62 25 23 23 23 21 22 20 18 27 28 37 Slowest Speed 1300 | 160 160 550 160 240 160 1300 260 260 330 1100 50 227 29 23 23 23 23 24 20 24 125 112 125 Overloaded Moves 148 | . . . . . . . . . . . . 20 . . . . 25 16 . 47 30 10 . Propulsion Burnouts 1 | . . . . . . . . . . . . . . . . . . . . . . 1 . Robots Hopped 20 | . . . . . . . . . . . . 2 1 2 . . . . 1 3 2 . 9 Potential Cave-ins . | . . . . . . . . . . . . . . . . . . . . . . . . Cave-ins Triggered 1 | . . . . . . . . . . 1 . . . . . . . . . . . . . Teleports 3 | . . . . . . . . . . . . . . . . . 1 . . . . . 2 Exploration Rate (%) 43 | 4 83 68 12 62 32 36 4 90 57 12 66 39 12 51 44 62 65 21 15 66 23 51 63 Regions Visited 23 Branch Regions 7 Pre-discovered Areas 9 | . 1 4 . . . . . . . . . . . 1 . 3 . . . . . . . Known Exits Taken 16 | . 1 1 1 . 1 . 1 . . . . 1 1 1 1 1 1 1 1 1 1 1 . Unknown Exits Taken 1 | 1 . . . . . . . . . . . . . . . . . . . . . . . Scrap Searched 9 | . . . . . . . . . . . . . . 4 4 . 1 . . . . . . Spaces Dug 88 | . 3 4 . . 2 . . . . 4 . 14 3 . . . 1 14 6 2 16 7 12 Terrain Destroyed 483 | . 30 22 5 2 5 31 3 60 157 12 . 14 3 . . . 1 14 6 53 46 7 12 Melee 78 | . . 4 . . 2 . . . . 3 . 14 3 . . . 1 14 6 2 15 6 8 Projectile 23 | . 3 . 5 . 3 1 3 . . 1 . . . . . . . . . . 2 1 4 AOE 382 | . 27 18 . 2 . 30 . 60 157 8 . . . . . . . . . 51 29 . . Terrain Rammed . | . . . . . . . . . . . . . . . . . . . . . . . . Walls Destroyed . | . . . . . . . . . . . . . . . . . . . . . . . . Machines Disabled . | . . . . . . . . . . . . . . . . . . . . . . . . Actions | -11 -10 -9 -8 -8 -8 -8 -7 -7 -7 -6 -6 -6 -5 -5 -5 -5 -4 -4 -3 -3 -2 -2 -2 --------- Run | Yrd Mat Mat Mat Gar Mat Gar Fac DSF Gar Fac Was Fac Fac Upp Upp Zhi Pro Fac Res Tes Res Qua Sec Total 13441 | 64 838 1358 98 772 553 379 108 189 719 381 79 1824 494 318 241 182 400 499 563 532 882 567 1401 Wait 1192 | . 215 320 . 72 49 1 2 2 35 46 2 45 50 . 6 . 14 29 70 22 117 15 80 Move 10774 | 52 547 817 76 559 429 307 94 116 561 277 68 1573 425 314 228 168 382 433 469 455 685 503 1236 Hop 19 | . . . . . . . . . . . . 2 1 2 . . . . 1 3 2 . 8 Pick Up 152 | 6 12 20 5 12 11 3 . 6 13 4 2 20 3 . 1 1 . 9 3 3 3 7 8 Fast Attach 129 | 6 4 12 1 . . 5 . 13 10 3 2 30 5 1 2 2 . 1 1 5 7 8 11 Attach 83 | . . 9 2 5 1 7 3 3 7 4 1 7 1 . . . 1 2 3 2 8 4 13 Detach 47 | . . 3 1 . 1 1 3 3 4 1 . 6 . . . . . 1 2 4 6 5 6 Swap 166 | . 13 31 2 21 15 12 1 7 17 9 . 12 1 . 1 4 1 2 2 3 7 2 3 Drop 160 | . 5 25 5 9 12 . . 4 19 5 4 32 2 1 2 2 . 3 3 7 2 11 7 Fire 444 | . 42 114 6 75 31 35 3 33 48 3 . 36 . . . . . . . 4 9 1 4 Melee 236 | . . 6 . 19 4 8 2 2 5 29 . 46 6 . 1 5 2 16 9 5 36 11 24 Ram 1 | . . . . . . . . . . . . . . . . . . . . . . . 1 Kick 1 | . . 1 . . . . . . . . . . . . . . . . . . . . . Crush . | . . . . . . . . . . . . . . . . . . . . . . . . Escape Stasis 37 | . . . . . . . . . . . . 15 . . . . . 3 . 19 . . . Rewire . | . . . . . . . . . . . . . . . . . . . . . . . . Trap . | . . . . . . . . . . . . . . . . . . . . . . . . Miscellaneous . | . . . . . . . . . . . . . . . . . . . . . . . . Route ------- -11/Scrapyard -10/Materials (discovered 6 exits: *Mat x3 / *Min x2 / Sub) -9/Materials (discovered 4 exits: *Mat x3 / *Min) -8/Materials (discovered 2 exits: Fac / Gar) -8/Garrison (discovered 2 exits: *Mat x2) -8/Materials -8/Garrison (discovered 3 exits: *Fac x3) -7/Factory -7/DSF -7/Garrison -6/Factory -6/Waste -6/Factory (discovered 3 exits: *Fac / *Low x2) -5/Factory -5/Upper Caves -5/Upper Caves -5/Zhirov -4/Proximity Caves -4/Factory (discovered 2 exits: *Res / Upp) -3/Research -3/Testing -2/Research (discovered 3 exits: [*Acc] / *Qua x2) -2/Quarantine (discovered 2 exits: *Sec / *Frg) -2/Section 7 History --------- Turn | Location | Event 35 | -11/Scrapyard | Discovered new exit (range 15) 97 | -11/Scrapyard | Entered Materials 320 | -10/Materials | Build established: Mutant 398 | -10/Materials | Discovered new exit (range 6) 588 | -10/Materials | Repaired Lgt. Treads 597 | -10/Materials | Derelicts attacked the area 616 | -10/Materials | Repaired Lgt. Treads 651 | -10/Materials | Discovered new exit (range 16) 882 | -10/Materials | Discovered new exit (range 6) 1246 | -10/Materials | Identified exit to Mines 1246 | -10/Materials | Identified exit to Subcaves 1246 | -10/Materials | Identified exit to Materials 1302 | -10/Materials | Loaded intel: 14 trap records 1314 | -10/Materials | Learned 4 Recycling zone layouts 1317 | -10/Materials | Learned 4 Subcaves zone layouts 1321 | -10/Materials | Learned location of Subcaves (-10) 1332 | -10/Materials | Learned 2 Mines zone layouts 1349 | -10/Materials | Entered another Materials area 1349 | -9/Materials | Evolved 2 slots: Propulsion x1, Utility x1 1513 | -9/Materials | Repaired Lgt. Treads 1704 | -9/Materials | Lost 8 parts (1p2n1u4w) 1817 | -9/Materials | Core integrity fell below 50% 2101 | -9/Materials | Build established: Scavenger-Mutant 2572 | -9/Materials | Build established: Mutant 2938 | -9/Materials | Discovered new exit (range 10) 2948 | -9/Materials | Build established: Scavenger-Mutant 3070 | -9/Materials | Identified exit to Mines 3086 | -9/Materials | Learned Storage trap positions 3119 | -9/Materials | Central database locked down 3149 | -9/Materials | Loaded intel: 2 recycling unit locations 3201 | -9/Materials | Learned 4 Recycling zone layouts 3244 | -9/Materials | Learned location of Zion (-6) 3253 | -9/Materials | Core integrity fell below 20% 3295 | -9/Materials | Identified exit to Materials 3295 | -9/Materials | Learned location of 1 exit from Materials 3304 | -9/Materials | Learned location of Recycling (-7) 3473 | -9/Materials | Entered another Materials area 3473 | -8/Materials | Evolved 2 slots: Propulsion x1, Utility x1 3474 | -8/Materials | Identified exit to Factory 3622 | -8/Materials | Identified exit to Garrison 3622 | -8/Materials | Entered Garrison 3744 | -8/Garrison | Triggered checkpoint 3770 | -8/Garrison | Garrison Relay disabled 3864 | -8/Garrison | Triggered checkpoint 3949 | -8/Garrison | Triggered checkpoint 3975 | -8/Garrison | Lost 3 parts (1p2n) 4075 | -8/Garrison | Discovered new exit (range 10) 4123 | -8/Garrison | Rescued a captive Derelict 4132 | -8/Garrison | Rescued a captive Derelict 4166 | -8/Garrison | Triggered checkpoint 4300 | -8/Garrison | Garrison Relay disabled 4530 | -8/Garrison | Triggered checkpoint 4558 | -8/Garrison | Discovered new exit (range 15) 4593 | -8/Garrison | Installed Relay Interface Framework 4704 | -8/Garrison | Triggered checkpoint 4769 | -8/Garrison | Garrison Relay disabled 4887 | -8/Garrison | Entered Materials 5198 | -8/Materials | Repaired EMP Blaster 5753 | -8/Materials | Identified exit to Garrison 5753 | -8/Materials | Entered Garrison 5765 | -8/Garrison | Discovered exit to Factory (range 54) 5765 | -8/Garrison | Discovered exit to Factory (range 90) 5765 | -8/Garrison | Discovered exit to Factory (range 67) 5877 | -8/Garrison | Destroyed 7 combat bots 5882 | -8/Garrison | Core integrity fell below 50% 5942 | -8/Garrison | Lost 10 parts (1p5n2u2w) 5943 | -8/Garrison | Destroyed 7 combat bots 6221 | -8/Garrison | Triggered checkpoint 6336 | -8/Garrison | Garrison Relay disabled 6590 | -8/Garrison | Expanded RIF knowledge: Coupler Efficiency 6710 | -8/Garrison | Entered Factory 6710 | -7/Factory | Evolved 2 slots: Propulsion x1, Weapon x1 6932 | -7/Factory | Identified exit to DSF 6932 | -7/Factory | Entered DSF 6966 | -7/DSF | Additional patrols routed to DSF 7174 | -7/DSF | Lost 4 parts (1n1u2w) 7181 | -7/DSF | Sterilization system engaged 7201 | -7/DSF | Ambient heat levels rising (+10) 7216 | -7/DSF | Ambient heat levels rising (+10) 7227 | -7/DSF | Lost 3 parts (1p1n1u) 7231 | -7/DSF | Ambient heat levels rising (+10) 7246 | -7/DSF | Ambient heat levels rising (+10) 7260 | -7/DSF | Discovered new exit (range 15) 7261 | -7/DSF | Ambient heat levels rising (+10) 7276 | -7/DSF | Ambient heat levels rising (+10) 7283 | -7/DSF | Entered Garrison 7344 | -7/Garrison | Triggered checkpoint 7391 | -7/Garrison | Phase Generator disabled 7434 | -7/Garrison | Core integrity fell below 50% 7477 | -7/Garrison | Lost 5 parts (3n2w) 7507 | -7/Garrison | Triggered checkpoint 7773 | -7/Garrison | Triggered checkpoint 7876 | -7/Garrison | Build established: Scavenger-Gunner 7909 | -7/Garrison | Triggered checkpoint 7949 | -7/Garrison | Garrison Relay disabled 7994 | -7/Garrison | Expanded RIF knowledge: Autooverride 8504 | -7/Garrison | Triggered checkpoint 8531 | -7/Garrison | Destroyed 8 combat bots 8657 | -7/Garrison | Discovered new exit (range 11) 8767 | -7/Garrison | Entered Factory 8767 | -6/Factory | Accompanied by 2 allies 8767 | -6/Factory | Evolved 2 slots: Utility x2 8883 | -6/Factory | Build established: Scavenger-Mutant 9117 | -6/Factory | First assault squad dispatched 9356 | -6/Factory | Crushed by falling debris 9356 | -6/Factory | System corruption reached 10% 9384 | -6/Factory | Sucked down chute 9384 | -6/Factory | Entered Waste 9396 | -6/Waste | Spotted C-40 Crusher 9399 | -6/Waste | EMP discharged 9413 | -6/Waste | Spotted C-40 Crusher 9413 | -6/Waste | Spotted C-40 Crusher 9413 | -6/Waste | Spotted C-40 Crusher 9414 | -6/Waste | Lost 12 parts (1p5n4u2w) 9422 | -6/Waste | Discovered new exit (range 12) 9423 | -6/Waste | Spotted C-40 Crusher 9428 | -6/Waste | Identified exit to Factory 9429 | -6/Waste | Entered Factory 9694 | -6/Factory | Discovered new exit (range 9) 9701 | -6/Factory | Identified exit to Lower Caves 9907 | -6/Factory | Discovered exit to Lower Caves (range 7) 10751 | -6/Factory | Discovered new exit (range 6) 10753 | -6/Factory | Identified exit to Factory 10753 | -6/Factory | Entered another Factory area 10753 | -5/Factory | Evolved 2 slots: Utility x2 10835 | -5/Factory | Discovered new exit (range 9) 10837 | -5/Factory | Identified exit to Upper Caves 10849 | -5/Factory | Build established: Scout 10931 | -5/Factory | Repaired Power Sword+ 10944 | -5/Factory | Entered Upper Caves 10995 | -5/Upper Caves | Discovered new exit (range 7) 10996 | -5/Upper Caves | Identified exit to Upper Caves 11020 | -5/Upper Caves | Entered another Upper Caves area 11065 | -5/Upper Caves | Learned location of 1 exit from Factory 11086 | -5/Upper Caves | Discovered new exit (range 8) 11088 | -5/Upper Caves | Identified exit to Zhirov 11088 | -5/Upper Caves | Entered Zhirov 11088 | -5/Zhirov | Discovered new exit (range 3) 11089 | -5/Zhirov | Identified exit to Proximity Caves 11093 | -5/Zhirov | Met Zhirov 11097 | -5/Zhirov | Learned location of Quarantine (-2) 11097 | -5/Zhirov | Learned location of Testing (-3) 11097 | -5/Zhirov | Learned location of Command (-1) 11100 | -5/Zhirov | Zhirov requested help retrieving the SGEMP Prototype 11134 | -5/Zhirov | Found Alien Artifact 11134 | -5/Zhirov | Identified Integrated Dissipator 11134 | -5/Zhirov | Installed Integrated Dissipator, increased core heat dissipation (+20) 11140 | -5/Zhirov | Found Alien Artifact 11151 | -5/Zhirov | Entered Proximity Caves 11151 | -4/Proximity Caves | Identified Transdimensional Reconstructor 11151 | -4/Proximity Caves | Warped through subspace 11179 | -4/Proximity Caves | Learned Research terminal intel 11255 | -4/Proximity Caves | Discovered new exit (range 5) 11256 | -4/Proximity Caves | Identified exit to Factory 11256 | -4/Proximity Caves | Entered Factory 11256 | -4/Factory | Evolved 2 slots: Propulsion x1, Utility x1 11257 | -4/Factory | Identified exit to Upper Caves 11278 | -4/Factory | Build established: Scavenger-Sprinter 11434 | -4/Factory | Discovered new exit (range 16) 11442 | -4/Factory | Identified exit to Research 11442 | -4/Factory | Entered Research 11442 | -3/Research | Evolved 2 slots: Power x1, Utility x1 11443 | -3/Research | Loaded intel: 22 terminal locations 11459 | -3/Research | Spotted B-86 Titan 11583 | -3/Research | Spotted B-86 Titan 11637 | -3/Research | Discovered new exit (range 8) 11642 | -3/Research | Identified exit to Testing 11642 | -3/Research | Entered Testing 11649 | -3/Testing | Found Prototype Processor 11649 | -3/Testing | Identified Exp. Melee Analysis Suite 11710 | -3/Testing | Watched by a mysterious "MATRIX" hacker 11710 | -3/Testing | Identified exit to Research 11749 | -3/Testing | Found Prototype Device 11756 | -3/Testing | Identified Exp. ECM Suite 11802 | -3/Testing | Spotted PX-3EU51SWO7Q 11810 | -3/Testing | Found Prototype Launcher 11814 | -3/Testing | Entered Research 11814 | -2/Research | Evolved 2 slots: Utility x2 11820 | -2/Research | Identified Mni. Smartbomb Launcher 11844 | -2/Research | Spotted B-90 Cyclops 11896 | -2/Research | Spotted B-90 Cyclops 11958 | -2/Research | Lost 4 parts (1p2n1u) 12193 | -2/Research | Identified exit to Quarantine 12232 | -2/Research | Discovered new exit (range 8) 12249 | -2/Research | Entered Quarantine 12253 | -2/Quarantine | Found Alien Impact Weapon 12253 | -2/Quarantine | Identified Core Stripper 12270 | -2/Quarantine | Found Alien Artifact 12270 | -2/Quarantine | Identified Subatomic Replicator 12315 | -2/Quarantine | Found Alien Reactor 12315 | -2/Quarantine | Identified Matter Drive 12324 | -2/Quarantine | Found Alien Artifact 12351 | -2/Quarantine | Cryocooling Duct disabled 12355 | -2/Quarantine | Cryocooling Duct disabled 12366 | -2/Quarantine | Ambient heat levels rising (+20) 12366 | -2/Quarantine | Non-combat units ordered to evacuate 12370 | -2/Quarantine | Ambient heat levels rising (+20) 12370 | -2/Quarantine | Combat units ordered to evacuate 12445 | -2/Quarantine | Spotted Fortress 12467 | -2/Quarantine | Discovered new exit (range 6) 12467 | -2/Quarantine | Discovered new exit (range 6) 12468 | -2/Quarantine | Identified exit to Protoforge 12469 | -2/Quarantine | Identified exit to Section 7 12470 | -2/Quarantine | Quarantine Guard activated 12470 | -2/Quarantine | Entered Section 7 12507 | -2/Section 7 | Found Prototype Processor 12507 | -2/Section 7 | Identified Exp. Core Analyzer 12516 | -2/Section 7 | Spotted B-90 Cyclops 12592 | -2/Section 7 | Spotted S7 Guard 12599 | -2/Section 7 | Found Alien Artifact 12599 | -2/Section 7 | Identified Core Regenerator 12599 | -2/Section 7 | Used Core Regenerator, restored core integrity (+184) 12627 | -2/Section 7 | Central database locked down 12729 | -2/Section 7 | Spotted S7 Guard 12818 | -2/Section 7 | Found Alien Artifact 12818 | -2/Section 7 | Identified Integrated Mediator 12818 | -2/Section 7 | Installed Integrated Mediator, increased core attachment efficiency 12828 | -2/Section 7 | Spotted Executioner 12828 | -2/Section 7 | Spotted Executioner 12831 | -2/Section 7 | System corruption reached 10% 12840 | -2/Section 7 | Spotted B-99 Colossus 12861 | -2/Section 7 | Lost 7 parts (2p1n4u) 12862 | -2/Section 7 | Found Alien Artifact 12862 | -2/Section 7 | Identified Integrated Reactor 12862 | -2/Section 7 | Installed Integrated Reactor, increased core energy generation (+10) 12875 | -2/Section 7 | Found Alien Artifact 12875 | -2/Section 7 | Identified LRC Insulator 12875 | -2/Section 7 | Installed LRC Insulator, 1 resistance modified: EM +25% 12886 | -2/Section 7 | Spotted Alpha 7 12891 | -2/Section 7 | Spotted Alpha 7 12926 | -2/Section 7 | Found Alien Artifact 12928 | -2/Section 7 | Found Alien Artifact 12929 | -2/Section 7 | Found Alien Artifact 12934 | -2/Section 7 | Found Transdimensional Reconstructor 12944 | -2/Section 7 | Found Matter Drive 12948 | -2/Section 7 | Warped through subspace 12948 | -2/Section 7 | Spotted Striker 12948 | -2/Section 7 | Spotted Striker 12949 | -2/Section 7 | Used Subatomic Replicator to replicate Impulse Thruster Array+ 12982 | -2/Section 7 | Lost 6 parts (1p3n2u) 13017 | -2/Section 7 | Core integrity fell below 50% 13030 | -2/Section 7 | Found Alien Artifact 13030 | -2/Section 7 | Identified Core Membrane 13030 | -2/Section 7 | Installed Core Membrane, gained immunity to corruption 13053 | -2/Section 7 | Core integrity fell below 20% 13054 | -2/Section 7 | Identified Hpw. Transdimensional Reconstructor 13054 | -2/Section 7 | Warped through subspace 13076 | -2/Section 7 | Lost 4 parts (2n1u1w) 13141 | -2/Section 7 | Released all parts (6) 13141 | -2/Section 7 | Destroyed by P-80 Master with Gamma Rifle Last Messages --------------- data lost. 13109_ Sneak attack on K-01 Serf. 13109_ K-01 Serf destroyed. 13112_ Acquired 29 matter. 13113_ Acquired Med. Matter Pod. 13117_ Dropped Core Stripper. 13117_ Acquired Core Stripper. 13119_ System corrupted: Matter fused (-10). 13128_ Destroyed Sml. Battery. 13130_ P-80 Master resets R-10 Processor, system corruption cleaned. 13132_ Core Membrane filtered system corruption (1). 13136_ R-10 Processor collects Wheel. 13141_ Released Chainsword. 13141_ Released Mak. Terrain Scan Processor. 13141_ Released Machine Analyzer. 13141_ Released Adv. Hacking Suite. 13141_ Released Adv. Signal Interpreter. 13141_ Released Core Stripper. Map ----- +----------------------------------------------------+ | #""" " " "" """"""""" | | ?""" """" " ""???????" " | | ??"" ??" """ "" "?"""""""" "" | | #? ??"""" "?" " | | +? """"" | | +????? "" | | +??????? """"" " | | +???????? ????" | | #???????? ????" | | ????????? """"" % | | ?????????? | | ??????????? | | ???????????? | | ???????????? """"""""" " """"""" | | ?????????????"""""" ###""""""""""""""""""" | | ???????????????"""" #?#""""""""""""""""""" | | ????????????????##### ###++#?#########??#??????## | | ????????????????????# ??# #????????????????????? | | ????????????????????###??# #????????????????????? | | ?????????????????????????# #????????????????????? | | ?????????????????????????# #??#################?? | | ?????????????????????????# #??#"""""" """""#?? | | ?????????????????????????# #??#"""""" """""#?? | | ?????????????????????????# #??#"""""" "#?? | | ??????????????############ #### " """""#?? | | ??????????????# //@p """""#?? | | ??????????????# p """""#?? | | ??????????????#R ###############" """"#?? | | ??????????#####= #?????????????#"" #?? | | ???????#### # *#####?????????#" "#?? | | ???????#" " """ """"#?????????#"""""""" " " "#?? | | ???????#" """#?????????######### # ####?? | | ???????#" """#?????????????????# ###????? | | ???????#""""" """#?????????????????# #??????? | | ???????#""""" """#?????????????????# #??????? | | ???????#""""" """#?????????????????# #??????? | | ???????#""""" """#??##############?# #??????? | | ???????#" """#?#"""""""""""""#?# #??????? | | ???????#""""" """#?#"" """" #?# #??????? | | ???????#""""" """"#?#"" """" #?# #??????? | | ???????######## #####?#"" """" ### #??????? | | ??????????????# #?????#"" """" #??????? | | ??????????????# #?????# #??????? | | ??????????????# #?????# ######??????? | | ??????????????# ####### """ ""#???????????? | | ??????????????# """" ""#???????????? | | ??????????????# """" ""#???????????? | | ??????????????##########" """" ""#???????????? | | ???????????????????????#"""T """"""""#???????????? | | ???????????????????????##### ########????????????? | +----------------------------------------------------+ Best States ------------- Heat Dissipation 75 Coolant Potential 100 Energy Generation 35 Energy Capacity 525 Matter Stores 300 Matter Capacity 300 Sight Range 18 Robot Scan Range 16 Terrain Scan Range 24 Terrain Scan Density 210 ECM Strength 3 Power Amplification 50 Base Temperature (-) 200 Armor Coverage 450 Resistance: KI 30 Resistance: EM 25 Weapon Shielding 33 Evasion (%) 66 Targeting Accuracy 8 Core Analysis 8 Recoil Reduction 4 Particle Charging 15 Offensive Hacking 14 Defensive Hacking 24 Relay Coupler Types 2 Relay Coupler Value 70 Authchip Count 1 Item Schematics ----------------- Assault Drone Bay | -5/Zhirov | Free Exp. Heat Sink | -5/Zhirov | Free Exp. Optical Array | -5/Zhirov | Free Imp. Arc Thrower | -5/Zhirov | Free Robot Schematics ------------------ None Fabricated ------------ Nothing Repaired ---------- Lgt. Treads | 30% | -10/Materials Lgt. Treads | 70% | -10/Materials Lgt. Treads | 62% | -9/Materials EMP Blaster | 4% | -8/Materials Power Sword | 66% | -5/Factory Studied --------- Rocket Launcher | -9/Materials | Hacked Lrn. Missile Launcher | -6/Factory | Hacked Power Sword | -6/Factory | Hacked Xenon Bombardment Thruster | -6/Factory | Hacked Remote Datajack | -6/Factory | Hacked Mic. Nuclear Core | -6/Factory | Hacked Lgt. Nuclear Core | -3/Research | Hacked Impulse Thruster Array | -3/Research | Hacked Linear Accelerator | -3/Testing | Hacked Enh. Force Lance | -2/Section 7 | Hacked Alien Tech Used ----------------- Integrated Dissipator Transdimensional Reconstructor Core Stripper Subatomic Replicator Matter Drive Core Regenerator Integrated Mediator Integrated Reactor LRC Insulator Core Membrane High-powered Transdimensional Reconstructor Achievements -------------- Speed Demon Supersonic Challenges ------------ None Game ------ Seed GrenadeOpticalProtection Manual? 0 Play Time 04:06:53 Cumulative 146.5 hours Start 2026.07.26 @ 06:54:33 End 2026.07.26 @ 15:52:06 Sessions 3 Manual Loads 0 Difficulty Rogue Special Mode None Game No. 131 Rogue 124 Adventurer 0 Explorer 7 Win Type - Total 1 Types 1/0/0/0/0/0/0/0/0/0 Lore% 37 Gallery% 49 Achievement% 39 Wizard Run 0 Options --------- Layout 1 ASCII 0 Keyboard 1 Movement Numpad Keybinds 0 Fullscreen 2 Font 32/SmallcapsGlow Map View 50x35 Zoom Use 0% Tactical HUD 1 Map Filters NONE Filters NONE Steam 1 RUN: 562871ac-0160-4345-b44d-e4618ad42994